[Event "Swiss National League-A 2024"]
[Site "Luzern"]
[Date "2024.10.12"]
[Round "8.7"]
[White "Jaeggi, Dorian"]
[Black "Schlegel, Igor"]
[Result "1/2-1/2"]
[ECO "D45"]
[WhiteElo "2313"]
[BlackElo "2242"]
[Annotator "RC"]
[PlyCount "111"]
[EventDate "2023.10.03"]
[EventType "team-tourn"]
[EventCountry "SUI"]
[SourceTitle "playchess.com"]
[Source "ChessBase"]
[SourceQuality "1"]
[TimeControl "40/8400+30:20/3000+30:900+30"]

1. d4 {[%emt 0:40:05]} d5 {[%emt 0:40:32]} 2. c4 {[%emt 0:00:17]} e6 {[%emt 0:00:03]} 3. Nf3 {[%emt 0:00:27]} Nf6 {[%emt 0:00:10]} 4. Nc3 {[%emt 0:00:22]} c6 {[%emt 0:00:37]} 5. e3 {[%emt 0:00:34]} Nbd7 {[%emt 0:00:07]} 6. Be2 {[%emt 0:03:23]} Bd6 {[%emt 0:01:17]} 7. O-O {[%emt 0:00:37]} O-O {[%emt 0:00:28]} 8. b3 {[%emt 0:01:19]} b6 {[%emt 0:02:12]} 9. Bb2 {[%emt 0:00:18]} Bb7 {[%emt 0:00:10]} 10. Bd3 {[%emt 0:02:58]} Qe7 {[%emt 0:05:13]} 11. e4 {[%emt 0:10:06]} dxe4 {[%emt 0:02:13]} 12. Nxe4 {[%emt 0:00:08]} Nxe4 {[%emt 0:04:30]} 13. Bxe4 {[%emt 0:00:09]} Nf6 {[%emt 0:10:29]} 14. Bc2 {[%emt 0:00:23]} c5 {[%emt 0:00:10]} 15. Qe2 {[%emt 0:02:17]} Rad8 {[%emt 0:23:38]} 16. Rad1 {[%emt 0:01:19]} cxd4 {[%emt 0:01:34]} 17. Bxd4 {[%emt 0:03:38]} Bc5 {[%emt 0:08:51]} 18. Bc3 {[%emt 0:05:41]} h6 {[%emt 0:12:38]} 19. Ne5 {[%emt 0:03:44]} Ba8 {[%emt 0:03:13]} 20. Ng4 {[%emt 0:08:30]} Nxg4 {[%emt 0:02:40]} 21. Qxg4 {[%emt 0:00:15]} Qg5 {[%emt 0:16:46]} 22. Qxg5 {[%emt 0:06:13]} hxg5 {[%emt 0:00:02]} 23. b4 {[%emt 0:00:58]} Be7 {[%emt 0:00:56]} 24. f3 {[%emt 0:04:46]} Bf6 {[%emt 0:02:38]} 25. Bxf6 {[%emt 0:01:28]} gxf6 {[%emt 0:00:01]} 26. Kf2 {[%emt 0:05:04]} f5 {[%emt 0:00:29]} 27. g3 {[%emt 0:12:55]} Kg7 {[%emt 0:03:19]} 28. h4 {[%emt 0:01:21]} gxh4 {[%emt 0:02:39]} 29. gxh4 {[%emt 0:00:07]} Kf6 {[%emt 0:00:42]} 30. Rxd8 {[%emt 0:02:15]} Rxd8 {[%emt 0:00:00]} 31. Rd1 {[%emt 0:00:14]} Rh8 {[%emt 0:00:59]} 32. Bb3 {[%emt 0:07:12]} Ke7 {[%emt 0:03:38]} 33. Ba4 {[%emt 0:00:43]} a5 {[%emt 0:01:31]} 34. Rd7+ {[%emt 0:00:45]} Kf6 {[%emt 0:00:01]} 35. bxa5 {[%emt 0:00:32]} bxa5 {[%emt 0:00:01]} 36. Ra7 {[%emt 0:00:13]} Ke5 {[%emt 0:00:31]} 37. Rxa5+ {[%emt 0:02:04]} Kf4 {[%emt 0:01:07]} 38. Bd1 {[%emt 0:00:28]} e5 {[%emt 0:01:05]} 39. Ra7 {[%emt 0:08:49]} Bc6 {[%emt 0:01:05]} 40. Rc7 {[%emt 0:08:13]} Ba8 {[%emt 0:01:32]} 41. Ra7 {[%emt 0:51:10]} Rf8 {[%emt 0:19:10]} 42. h5 {[%emt 0:00:00]} e4 {[%emt 0:00:43]} 43. fxe4 {[%emt 0:00:00]} fxe4 {[%emt 0:00:07]} 44. h6 {[%emt 0:00:00]} e3+ {[%emt 0:01:55]} 45. Kf1 {[%emt 0:00:00]} Be4 {[%emt 0:01:23]} 46. c5 {[%emt 0:00:00]} f5 {[%emt 0:04:54]} 47. h7 {[%emt 0:00:00]} Ke5 {[%emt 0:00:42]} 48. Bb3 {[%emt 0:00:00]} Bd3+ {[%emt 0:17:42]} 49. Ke1 {[%emt 0:00:00]} Rh8 {[%emt 0:00:09]} 50. Bg8 {[%emt 0:00:00]} f4 {[%emt 0:00:10]} 51. Re7+ {[%emt 0:00:00]} Kd4 {[%emt 0:04:07]} 52. Rd7+ {[%emt 0:00:00]} Kc3 {[%emt 0:01:05]} 53. Rf7 {[%emt 0:00:00]} f3 {[%emt 0:01:00]} 54. Rxf3 {[%emt 0:00:00]} Bxh7 {[%emt 0:00:06]} 55. Bxh7 {[%emt 0:00:00]} Rxh7 {[%emt 0:00:05]} 56. Rxe3+ {[%emt 0:00:00]} 1/2-1/2

[Event "Swiss National League-A 2024"]
[Site "Luzern"]
[Date "2024.10.12"]
[Round "8.8"]
[White "Gattenloehner, Sebastian"]
[Black "Brunner, Nicolas"]
[Result "1/2-1/2"]
[ECO "B50"]
[WhiteElo "2220"]
[BlackElo "2427"]
[Annotator "TA"]
[PlyCount "62"]
[EventDate "2023.10.03"]
[EventType "team-tourn"]
[EventCountry "SUI"]
[SourceTitle "playchess.com"]
[Source "ChessBase"]
[SourceQuality "1"]
[TimeControl "40/8400+30:20/3000+30:900+30"]

{[%evp 16,62,30,-8,0,-61,-34,-67,0,-39,33,11,64,39,58,51,66,31,51,37,57,0,25,22,61,17,49,30,67,9,77,30,21,20,50,-118,0,0,0,0,18,13,13,13,17,-668,13,13,29]} 1. e4 {[%emt 0:40:09]} c5 {[%emt 0:40:04]} 2. Nf3 {[%emt 0:00:18]} d6 {[%emt 0:00:05]} 3. c3 {[%emt 0:00:36]} Nf6 {[%emt 0:00:08]} 4. Be2 {[%emt 0:00:11]} g6 {[%emt 0:00:08]} 5. O-O {[%emt 0:00:14]} Bg7 {[%emt 0:00:03]} 6. Bb5+ {[%emt 0:00:16]} Bd7 {[%emt 0:00:06]} 7. Bxd7+ {[%emt 0:00:13]} Nbxd7 {[%emt 0:00:05]} 8. Re1 {[%emt 0:00:40]} O-O {[%emt 0:00:07]} 9. d4 {[%emt 0:00:38]} Rc8 {[%emt 0:00:15] B50: Siciliaans: 2...d6, Gemengd.} 10. d5 {[%emt 0:04:07] Fout (0.6)} (10. Bg5 $11) 10... c4 $15 {[%emt 0:09:55] Beste} 11. Na3 {[%emt 0:18:13] Onnauwkeurig} Ng4 $146 {[%emt 0:06:27] Fout (0.7)} (11... a6 $15) ({Predecessor:} 11... a6 12. Bg5 h6 13. Bh4 Ne5 14. Nxe5 dxe5 15. b3 b5 16. bxc4 Qa5 17. Qb3 bxc4 18. Nxc4 {0-1 Muzychuk,M (2540)-Kulon,K (2319) EU-ch (Women) 19th 2018 (8)}) 12. Bf4 {[%emt 0:09:20] Onnauwkeurig} Nge5 {[%emt 0:06:37] Fout (0.7)} (12... a6 $15) 13. Bxe5 $14 {[%emt 0:04:09] OK} {Zwart zou moeten proberen} Nxe5 {[%emt 0:00:08] Fout (0.5)} (13... Bxe5 $11 14. Qe2 Qc7) 14. Nxe5 {[%emt 0:00:17]} Bxe5 {[%emt 0:00:05]} 15. Qe2 {[%emt 0:01:16][%cal Ra3c4] OK} Qc7 {[%emt 0:00:56] Beste} 16. Rad1 {[%emt 0:01:42] Onnauwkeurig} Qc5 {[%emt 0:12:10][%cal Oe5c3]} 17. Nc2 {[%emt 0:02:33] OK} e6 {[%emt 0:12:08]} {Wit zou moeten spelen} 18. Ne3 {[%emt 0:06:49] Fout (0.6)} (18. a4 $14) 18... b5 {[%emt 0:01:43]} 19. Qg4 {[%emt 0:06:22][%cal Rd5e6]} Rfe8 {[%emt 0:11:02] Onnauwkeurig} 20. Nc2 {[%emt 0:08:55] Tegen b4. Onnauwkeurig} a5 {[%emt 0:01:29] Onnauwkeurig} 21. a3 {[%emt 0:00:27] OK} Rb8 {[%emt 0:07:03] Onnauwkeurig} 22. dxe6 {[%emt 0:10:00] Fout (0.6)} (22. g3 $14) 22... fxe6 {[%emt 0:00:05] Houdt de partij in balans. Fout (0.7)} (22... Rxe6 $11 23. Rd5 Qc6) {Beter is} 23. Nd4 {[%emt 0:00:21] Fout (0.5)} (23. Re2 $16) 23... b4 $11 {[%emt 0:03:36] OK} 24. axb4 {[%emt 0:09:44] OK} (24. Nxe6 $2 {vergaat.} Qc8 25. f4 bxc3 26. fxe5 cxb2 (26... Rxe6 27. bxc3 Qc5+ 28. Rd4 $11) (26... Qxe6 27. Qxe6+ Rxe6 28. bxc3 $11) 27. exd6 Qxe6 $19 (27... Rxe6 28. d7 $11)) (24. h4 $5 {is scherper.} bxc3 25. bxc3 Bxd4 26. Rxd4 Rb2 27. h5) 24... axb4 {[%emt 0:00:07] Onnauwkeurig} 25. Re3 $2 {[%emt 0:00:14] [#] houdt voordeel. Fout (1.7)} ({Ondeugdelijk is} 25. Nxe6 Qc8 26. f4 bxc3 27. fxe5 (27. bxc3 $2 Bxc3 28. Re3 Bf6 $19) 27... cxb2 (27... Qxe6 28. Qxe6+ Rxe6 29. bxc3 $14) (27... Rxe6 28. bxc3 Qc5+ 29. Rd4 $14) 28. exd6 Qxe6 $17 (28... Rxe6 29. d7 $11)) (25. h4 $14) {Zwart zou moeten spelen} 25... bxc3 {[%emt 0:08:32] Fout (1.2)} (25... Bxd4 $1 $17 26. cxd4 (26. Rxd4 $2 bxc3 27. bxc3 Qxd4 $19) 26... Qc7) 26. bxc3 {[%emt 0:00:22]} Bxd4 {[%emt 0:01:40] Beste (Gemakkelijk)} 27. cxd4 {[%emt 0:01:49]} (27. Rxd4 $2 Qxd4 28. h4 Rb1+ 29. Kh2 Qd1 30. Qxd1 Rxd1 $19) 27... Qb4 {[%emt 0:03:26] Wit moet nu ...c3 voorkomen.} 28. h4 {[%emt 0:01:09] OK} c3 {[%emt 0:01:33] Dreigt te winnen met ...c2. OK} 29. Rc1 {[%emt 0:02:15] OK} c2 {[%emt 0:06:51] met als doel voor ...Qd2. OK} (29... Qxd4 30. Rexc3 (30. Rcxc3 Rb1+ 31. Kh2 Qd1 $14) 30... Kh8 31. Rc4 $16) 30. Ree1 $2 {[%emt 0:05:23][%mdl 8192] [#] Verliest partij (6.9)} (30. Rxc2 $2 {te hebberig.} Qb1+ (30... Qxd4 31. Rc1 $17) 31. Kh2 Qxc2 $19) (30. Re2 $11) {Zwart kan overwegen} 30... Qd2 $2 {[%emt 0:01:27] Gemiste overwinning (6.8)} (30... Qxd4 31. Rxc2 Qe5 32. Rce2 $14) (30... Qxe1+ $1 $19 31. Rxe1 Rb1 32. Rxb1 (32. Qe2 $2 Rc8 $19) 32... cxb1=Q+ 33. Kh2 Qb2) 31. Qe2 {[%emt 0:00:56] Beste} Qxe2 {[%emt 0:05:36] Blunder waarde: Wit=0.52/Zwart=0.68.  Verliest partij:   	Wit=1      	---        Gemiste overwinning: 	---       	Zwart=1      Fout:        	Wit=5      	Zwart=5      Onnauwkeurig:    	Wit=4      	Zwart=4      OK:         	Wit=7      	Zwart=3      Beste:        	Wit=1      	Zwart=3} 1/2-1/2

[Event "Swiss National League-A 2024"]
[Site "Luzern"]
[Date "2024.10.12"]
[Round "8.9"]
[White "Pelletier, Yannick"]
[Black "Kraemer, Martin"]
[Result "1/2-1/2"]
[ECO "D38"]
[WhiteElo "2528"]
[BlackElo "2571"]
[Annotator "TA"]
[PlyCount "118"]
[EventDate "2023.10.03"]
[EventType "team-tourn"]
[EventCountry "SUI"]
[SourceTitle "playchess.com"]
[Source "ChessBase"]
[SourceQuality "1"]
[TimeControl "40/8400+30:20/3000+30:900+30"]

{[%evp 12,118,16,30,48,5,6,-2,12,0,0,0,0,0,-4,-10,-13,-32,-25,-25,-25,-27,-4,0,0,-8,0,0,0,0,0,-27,-27,-27,-21,-31,0,-28,-15,-29,-25,-43,-43,-57,-57,-57,-57,-57,-57,-57,-57,-57,-57,-57,-57,-57,-57,-72,-72,-72,-72,-72,-72,-72,-72,-72,-72,-72,0,-72,-72,-72,-72,-72,-71,-71,-71,-71,-71,-71,-71,-71,-71,-71,-71,-71,-35,-42,0,-71,-71,-71,-71,-71,-59,-71,0,-71,-59,-71,0,-71,-59,-71,-59,-66,-33,-63,0]} 1. d4 {[%emt 0:40:05]} Nf6 {[%emt 0:41:30]} 2. c4 {[%emt 0:00:14]} e6 {[%emt 0:00:03]} 3. Nf3 {[%emt 0:00:20]} d5 {[%emt 0:01:04]} 4. Nc3 {[%emt 0:01:20]} Bb4 {[%emt 0:00:23]} 5. cxd5 {[%emt 0:06:26]} exd5 {[%emt 0:00:06]} 6. Bg5 {[%emt 0:00:23]} h6 {[%emt 0:00:10]} 7. Bh4 {[%emt 0:03:24]} O-O {[%emt 0:00:21]} 8. Rc1 {[%emt 0:06:23]} Bf5 {[%emt 0:16:16]} 9. e3 {[%emt 0:13:37]} Nbd7 {[%emt 0:00:54][%cal Bb8d7,Bd7f6,Bf6e4][%mdl 32] The position is equal.} 10. Bd3 {[%emt 0:08:35]} Bxd3 {[%emt 0:02:17]} 11. Qxd3 {[%emt 0:00:40]} c6 {[%emt 0:01:08]} 12. O-O {[%emt 0:02:46]} Re8 {[%emt 0:01:14]} 13. Qf5 {[%emt 0:08:47]} g6 {[%emt 0:07:28]} 14. Bxf6 {[%emt 0:00:36]} Nxf6 {[%emt 0:00:22]} 15. Qh3 {[%emt 0:00:28]} Kg7 {[%emt 0:10:53]} 16. Ne5 {[%emt 0:00:12]} Qc8 {[%emt 0:06:21]} 17. Qxc8 {[%emt 0:08:04]} Raxc8 {[%emt 0:00:03]} 18. Nd3 {[%emt 0:00:20]} Bxc3 {[%emt 0:11:12]} 19. Rxc3 {[%emt 0:00:50]} Ne4 {[%emt 0:00:04]} 20. Rc2 {[%emt 0:02:04]} a5 {[%emt 0:04:49]} 21. f3 {[%emt 0:14:47]} Nd6 {[%emt 0:00:45]} 22. Kf2 {[%emt 0:01:49]} h5 {[%emt 0:03:49]} 23. g3 {[%emt 0:05:10]} g5 {[%emt 0:03:36]} 24. h3 {[%emt 0:00:52]} Re7 {[%emt 0:02:08]} 25. Re2 {[%emt 0:03:45]} f6 {[%emt 0:06:21]} 26. h4 {[%emt 0:04:46]} g4 {[%emt 0:01:23]} 27. fxg4 {[%emt 0:00:00]} hxg4 {[%emt 0:00:26]} 28. Kg2 {[%emt 0:06:27]} Nc4 {[%emt 0:04:34]} 29. Rfe1 {[%emt 0:00:11]} Rce8 {[%emt 0:00:13]} 30. Kf2 $1 {[%emt 0:00:05]} Nd6 {[%emt 0:00:53]} 31. Kg2 {[%emt 0:00:29]} Nf5 {[%emt 0:07:06][%cal Of5d4] [#] Strongly threatening ...Nxd4!} 32. Kf2 $1 {[%emt 0:00:07]} a4 {[%emt 0:09:39]} ({Don't go for} 32... Rxe3 $2 33. Rxe3 Nxe3 34. Rxe3 $18) 33. Nc5 {[%emt 0:03:13]} Ra8 $1 {[%emt 0:00:29]} 34. a3 {[%emt 0:02:01]} Kf7 {[%emt 0:02:23]} 35. Rd1 {[%emt 0:03:44]} Nd6 {[%emt 0:00:17]} 36. Rde1 {[%emt 0:01:56]} f5 {[%emt 0:02:18]} 37. Rc1 {[%emt 0:01:33]} Kf6 {[%emt 0:02:22]} 38. Rf1 {[%emt 0:01:46]} Nc4 {[%emt 0:00:37]} 39. Rc1 {[%emt 0:00:23][%cal Oc5a4]} Nd6 {[%emt 0:01:38]} ({Black should play} 39... Rae8 $17 {[%cal Re7e3]} 40. Rce1 b5) 40. Nd3 {[%emt 0:00:31]} (40. Rf1 $1 $11) 40... Rae8 $17 {[%emt 0:02:15] [#] aiming for ...Ne4+.} 41. Rce1 {[%emt 0:04:47]} Kg7 {[%emt 0:17:14]} 42. Kg2 {[%emt 0:08:06]} Nc4 {[%emt 0:07:03]} 43. Kf2 {[%emt 0:00:11]} Ra8 {[%emt 0:00:12]} 44. Rc1 {[%emt 0:05:32]} Ra5 {[%emt 0:03:55]} 45. Nc5 {[%emt 0:05:12]} Nd6 {[%emt 0:00:13]} 46. Kg2 {[%emt 0:19:08]} Kg6 {[%emt 0:03:19]} 47. Rcc2 {[%emt 0:01:52]} Ra8 {[%emt 0:07:36]} 48. Kf2 {[%emt 0:00:22]} Ne4+ {[%emt 0:00:46]} 49. Kg2 {[%emt 0:01:07]} Nd6 {[%emt 0:03:16]} 50. Kf2 $1 {[%emt 0:00:06]} Kf6 {[%emt 0:00:26]} 51. Rc1 {[%emt 0:01:34]} Rf7 {[%emt 0:02:01]} 52. Nd3 {[%emt 0:01:11]} Nc4 {[%emt 0:00:55]} 53. Nc5 {[%emt 0:00:09]} Nd6 {[%emt 0:02:07]} 54. Nd3 $1 {[%emt 0:00:04]} Rc7 {[%emt 0:00:17]} 55. Kg2 {[%emt 0:02:14]} Re7 {[%emt 0:04:59]} 56. Kf2 $1 {[%emt 0:01:53]} Ne4+ {[%emt 0:00:26]} 57. Kg2 {[%emt 0:00:12]} Rae8 {[%emt 0:00:11][%cal Oe4g3] ...Nxg3! would now be deadly.} 58. Rce1 {[%emt 0:01:37]} Kg7 {[%emt 0:00:47]} 59. Rd1 {[%emt 0:03:04]} Nd6 {[%emt 0:03:21] Weighted Error Value: White=0.07 (flawless) /Black=0.10 (very precise) .  Mistake:       	White=1     	Black=2      Inaccurate:     	White=4     	Black=3      OK:         	White=11    	Black=16     Best:        	White=1     	Black=1      Strong:       	White=5     	Black=1} ({Better is} 59... Rf8 $15) 1/2-1/2

[Event "Swiss National League-A 2024"]
[Site "Luzern"]
[Date "2024.10.12"]
[Round "8.10"]
[White "Baenziger, Fabian"]
[Black "Petkidis, Anthony"]
[Result "1/2-1/2"]
[ECO "E55"]
[WhiteElo "2434"]
[BlackElo "2433"]
[Annotator "TA"]
[PlyCount "149"]
[EventDate "2023.10.03"]
[EventType "team-tourn"]
[EventCountry "SUI"]
[SourceTitle "playchess.com"]
[Source "ChessBase"]
[SourceQuality "1"]
[TimeControl "40/8400+30:20/3000+30:900+30"]

{[%evp 22,149,22,13,13,2,13,6,35,23,21,0,0,13,57,52,147,141,142,125,166,130,191,146,173,184,194,180,175,163,187,160,229,153,244,137,184,154,170,131,143,113,238,196,235,236,229,214,208,231,220,222,267,185,245,220,330,276,288,239,240,187,204,186,202,145,145,145,145,145,145,145,145,145,147,147,145,144,144,144,141,78,87,87,86,82,88,88,88,88,88,88,88,88,94,95,88,88,92,88,88,88,88,88,88,88,88,71,108,88,88,88,88,79,88,88,88,88,88,88,88,88,88,0,0,0,0,0,0,0]} 1. d4 {[%emt 0:40:04]} Nf6 {[%emt 0:40:15]} 2. c4 {[%emt 0:00:26]} e6 {[%emt 0:00:12]} 3. Nc3 {[%emt 0:01:06]} Bb4 {[%emt 0:00:14]} 4. e3 {[%emt 0:00:18][%cal Be2e3,Be3d4][%mdl 32] EV=11.33} O-O {[%emt 0:00:29]} 5. Bd3 {[%emt 0:00:53]} c5 {[%emt 0:01:29]} 6. Nf3 {[%emt 0:01:20]} d5 {[%emt 0:00:54]} 7. O-O {[%emt 0:00:29]} cxd4 {[%emt 0:00:55]} 8. exd4 {[%emt 0:00:21]} dxc4 {[%emt 0:00:13]} 9. Bxc4 {[%emt 0:00:05]} b6 {[%emt 0:00:33]} 10. Qe2 {[%emt 0:05:35]} Bb7 {[%emt 0:01:22]} 11. Rd1 {[%emt 0:00:54][%cal Bf1d1,Bd1d5,Bd5d7][%mdl 32] EV=12.28} Nbd7 {[%emt 0:05:39]} 12. d5 {[%emt 0:04:20]} exd5 {[%emt 0:08:11] Tegenwoordig populairder dan 12...Bxc3. E55: Nimzo-Indisch: Rubinstein: Hoofdvariant: 7...dxc4 8 Lxc4 Pbd7.} 13. Nxd5 {[%emt 0:00:55]} Re8 {[%emt 0:08:34] OK} 14. Qc2 {[%emt 0:00:28] OK} Nxd5 {[%emt 0:08:27] Onnauwkeurig} 15. Bxd5 {[%emt 0:00:28]} Bxd5 {[%emt 0:00:29]} 16. Rxd5 {[%emt 0:00:08]} Qe7 {[%emt 0:03:13][%cal Oe7e1] [#] ( -> ...Qe1+!). OK} 17. Bg5 {[%emt 0:00:57] OK} Qe6 {[%emt 0:03:09] Onnauwkeurig} 18. Rad1 {[%emt 0:05:41] OK} f6 $146 {[%emt 0:25:25] Fout (1.0)} (18... Nf6 $14 19. Re5 Qc8 20. Rxe8+ Qxe8) ({Predecessor:} 18... Nf8 19. Be3 Be7 20. Qa4 Bf6 21. b3 Qc8 22. h3 Qb7 23. Qg4 Rad8 24. Rxd8 Rxd8 25. Rxd8 Bxd8 {½-½ Gelfand,B (2678)-Keymer,V (2700) Sigeman & Co 28th 2023 (4)}) 19. Rxd7 $40 {[%emt 0:10:04][%mdl 128] Wit heeft een sterke aanval. OK} fxg5 {[%emt 0:00:24] [#] OK} 20. h4 $1 {[%emt 0:00:07] Wit heeft actievere stukken. Sterk} (20. Nxg5 $2 {wordt mat gezet.} Qe1+ 21. Rxe1 Rxe1#) 20... Be7 {[%emt 0:07:50] Onnauwkeurig} 21. hxg5 {[%emt 0:10:56]} Bf8 {[%emt 0:05:22] Fout (0.6)} (21... a5 $16 22. a3 Bc5) 22. Qa4 {[%emt 0:09:48][%cal Od1e1]} a5 {[%emt 0:01:12]} 23. Re1 {[%emt 0:05:27] OK} Qf5 {[%emt 0:00:47] OK} 24. Qb3+ {[%emt 0:14:24] OK} Kh8 {[%emt 0:00:29] Beste} 25. Rxe8 {[%emt 0:00:18] OK} Rxe8 {[%emt 0:00:07]} 26. Rd5 {[%emt 0:00:11] OK} Qe6 {[%emt 0:03:13] pakt misschien beter uit. Fout (0.7)} (26... Qe4 $16 27. Rd4 Qe6 28. Qxe6 Rxe6) 27. Qd3 {[%emt 0:06:17] Onnauwkeurig} Rc8 {[%emt 0:05:15] Fout (0.9)} (27... Qe2 $16) {Beter is} 28. Qd2 {[%emt 0:01:47] Fout (1.1)} (28. Ne5 $18) 28... Kg8 {[%emt 0:01:11] OK} 29. b3 {[%emt 0:01:31]} g6 {[%emt 0:02:04]} 30. Re5 {[%emt 0:12:06]} Qc6 {[%emt 0:01:34]} 31. Qd3 {[%emt 0:01:10]} Bb4 {[%emt 0:02:11] was nodig. Fout (1.2)} (31... Qd6 $16 32. Qf1 Qc6) 32. g3 $18 {[%emt 0:01:25] OK} Rf8 {[%emt 0:02:38][%cal Bc8f8,Bf8f3,Bf3c3,Bc3c5][%mdl 32] EV=19.12} 33. Nh2 {[%emt 0:04:48] OK} Bc5 {[%emt 0:04:05][%cal Rc5f2]} 34. Ng4 {[%emt 0:00:42] Rd5 zou dodelijk zijn. OK} Qf3 {[%emt 0:06:47] OK} 35. Qxf3 {[%emt 0:03:00] OK} ({Veel minder sterk is} 35. Qc4+ Kg7 36. Kh2 Rd8) 35... Rxf3 {[%emt 0:00:03][%mdl 4096] Eindspel. KRB-KRN} 36. Kg2 {[%emt 0:04:50] OK} Rc3 {[%emt 0:00:34] OK} 37. Re2 {[%emt 0:02:23] Tegen Rc2. Onnauwkeurig} Bd4 {[%emt 0:02:28] is een betere verdediging. Fout (0.6)} (37... Kf7 38. Nf6 h5) 38. Rd2 {[%emt 0:02:47]} Bg7 {[%emt 0:00:44] was een poging waard. Fout (1.1)} (38... Bc5 39. Nf6+ Kf7) 39. Rd6 {[%emt 0:00:37]} Rc5 {[%emt 0:00:38]} 40. f4 {[%emt 0:00:40]} ({Weersta} 40. Rxb6 $6 Rxg5 41. Ne3 Rc5 $16) 40... Rc2+ {[%emt 0:00:33] OK} 41. Kf3 {[%emt 0:04:14]} Rxa2 {[%emt 0:13:58] OK} 42. Rxb6 {[%emt 0:00:47] Beste (Gemakkelijk)} a4 {[%emt 0:05:43] OK} 43. Rb8+ {[%emt 0:03:33]} Kf7 {[%emt 0:00:23] Beste} 44. Rb7+ {[%emt 0:01:50] OK} Kg8 {[%emt 0:03:12] Beste} 45. bxa4 {[%emt 0:15:09] Ra7 is de sterke dreiging. OK} Ra3+ {[%emt 0:00:11] Beste} 46. Kg2 {[%emt 0:00:03]} Rxa4 {[%emt 0:00:06] OK} 47. Rb3 {[%emt 0:00:03]} Kf7 {[%emt 0:03:37]} 48. Kf3 {[%emt 0:00:05]} Ra7 {[%emt 0:00:34] Afleidend Rb7+. OK} 49. Re3 {[%emt 0:00:21] OK} Rb7 {[%emt 0:00:25]} 50. Re4 {[%emt 0:00:08]} Rb3+ {[%emt 0:00:10] OK} {Wit zou moeten proberen} 51. Ne3 {[%emt 0:00:04] Fout (0.6)} (51. Kf2) 51... h6 $16 {[%emt 0:01:15] OK} 52. gxh6 {[%emt 0:00:05] OK} Bxh6 {[%emt 0:00:08]} 53. Kg4 {[%emt 0:00:08] OK} Bf8 {[%emt 0:00:22]} 54. Nc4 {[%emt 0:00:21] OK} Bc5 {[%emt 0:05:25]} 55. Ne5+ {[%emt 0:00:35]} Kg7 {[%emt 0:00:06] Beste} 56. Rc4 {[%emt 0:01:46] OK} Bd6 {[%emt 0:06:13] OK} 57. Nf3 {[%emt 0:07:09] OK} Rb6 {[%emt 0:00:41] Stopt Rc6} 58. Rd4 {[%emt 0:00:34] OK} Ra6 {[%emt 0:01:10] OK} 59. Rd5 {[%emt 0:00:05]} Rb6 {[%emt 0:00:17]} 60. Ra5 {[%emt 0:00:23]} Rb7 {[%emt 0:04:53] OK} 61. Ra6 {[%emt 0:15:30]} Be7 {[%emt 0:15:32] OK} 62. Ne5 {[%emt 0:02:01][%cal Ra6g6] OK} Bf6 {[%emt 0:00:08] Beste} 63. Nc4 {[%emt 0:00:05]} Rd7 {[%emt 0:00:42] OK} 64. Rc6 {[%emt 0:00:11]} Ra7 {[%emt 0:01:55] Onnauwkeurig} 65. Nd6 {[%emt 0:00:25] Sterke dreiging met Ne8+.} Bd8 {[%emt 0:00:51] OK} 66. Rc3 {[%emt 0:01:55]} Bf6 {[%emt 0:01:08]} 67. Rd3 {[%emt 0:00:16]} Re7 {[%emt 0:00:24]} 68. Kf3 {[%emt 0:00:07]} Ra7 {[%emt 0:00:26] OK} 69. Ne4 {[%emt 0:00:28]} Be7 {[%emt 0:00:20] OK} 70. g4 {[%emt 0:00:03]} Ra3 {[%emt 0:00:21]} 71. Rxa3 {[%emt 0:00:11] OK} Bxa3 {[%emt 0:00:07]} {Wit kan overwegen.} 72. f5 {[%emt 0:00:02] Fout (0.9)} (72. Nf2 $16) 72... gxf5 $11 {[%emt 0:00:09] OK. De stelling is in evenwicht.} 73. gxf5 {[%emt 0:00:02]} Bb2 {[%emt 0:00:08] OK} 74. f6+ {[%emt 0:00:02]} Bxf6 {[%emt 0:00:07]} 75. Nxf6 {[%emt 0:00:03] Blunder waarde: Wit=0.16 (erg precies) /Zwart=0.22 (precies) .  Fout:        	Wit=3      	Zwart=7      Onnauwkeurig:    	Wit=2      	Zwart=4      OK:         	Wit=24     	Zwart=24     Beste:        	Wit=1      	Zwart=6      Sterk:        	Wit=1      	---} 1/2-1/2